bitfinex-derivatives/quotes_ETHF0:USTF0_20241007
["timestamp","ask_amount","ask_price","bid_price","bid_amount"]
[1728313561951,3.2078,2491.5,2490.9,1.0037]
[1728313562158,0.40142,2491.3,2491.2,0.40143]
[1728313562352,3.2078,2491.5,2490.8,40.8]
[1728313562553,3.2078,2491.2,2491.1,0.40144]
[1728313562751,3.2078,2491.2,2490.5,8.40165]
[1728313563053,0.40153,2490.6,2490.5,0.40153]
[1728313563451,0.8656,2490.8,2490.6,0.40151]
[1728313563652,0.4641,2490.8,2490.7,0.40151]
[1728313564350,0.4641,2490.8,2490.3,1.00391]
[1728313564555,0.40152,2490.6,2490.5,0.40153]
[1728313564754,0.40152,2490.6,2490.2,40.8]
[1728313564948,0.40152,2490.6,2490.5,0.40154]
[1728313565356,0.40152,2490.6,2490.4,0.40155]
[1728313565658,3.2078,2490.6,2490.2,40.8]
[1728313565959,3.2078,2490.6,2489.4,12.71202486]
[1728313565960,3.2078,2490.3,2489.3,3.2078]
[1728313566259,3.2078,2490.0,2489.1,1.04050593]
[1728313566560,0.40169,2489.6,2489.4,0.40172]
[1728313566763,3.2078,2489.7,2489.0,41.84050593]
[1728313566957,3.2078,2489.7,2489.0,40.8]
[1728313567458,3.2078,2489.7,2489.6,0.40169]
[1728313568256,0.4709,2490.2,2490.1,0.40161]
[1728313568648,0.4709,2490.2,2490.0,0.40161]
[1728313568852,0.4709,2490.2,2489.5,0.4017]
[1728313568853,3.2078,2490.1,2489.5,0.4017]
[1728313569056,3.2078,2489.8,2489.0,40.8]
[1728313569257,0.40172,2489.4,2489.0,40.8]
[1728313569563,0.40174,2489.3,2489.0,40.8]
[1728313569758,4.21195,2489.8,2489.0,40.8]
[1728313569957,0.40169,2489.6,2489.4,0.40171]
[1728313570157,3.2078,2489.8,2489.1,1.00442]
[1728313570362,3.6536,2490.1,2489.0,44.0078]
[1728313570557,3.6536,2490.1,2489.8,0.40164]
[1728313570752,3.6536,2490.1,2489.3,7.0678]
[1728313570753,3.6536,2490.1,2489.4,1.0043]
[1728313570958,3.6536,2490.1,2490.0,0.40162]
[1728313571153,0.4709,2490.2,2490.1,0.40161]
[1728313572462,3.2078,2490.4,2489.7,1.00418]
[1728313572758,3.2078,2490.4,2490.1,0.4016]
[1728313572961,3.2078,2490.4,2489.6,3.2078]
[1728313573161,3.2078,2490.4,2489.7,40.8]
[1728313573162,1.00394,2490.3,2489.7,40.8]
[1728313573357,0.40164,2490.0,2489.8,0.40165]
[1728313573657,3.2078,2490.1,2489.7,0.40166]
[1728313573658,0.40165,2489.9,2489.7,0.40166]
[1728313573864,0.40163,2490.0,2489.8,0.40165]
[1728313574662,3.2078,2490.1,2490.0,0.40162]
[1728313574860,7.2238,2490.1,2489.9,0.40162]
[1728313575164,3.2078,2490.1,2489.4,41.80428]
[1728313575366,3.2078,2490.1,2489.6,1.00421]
[1728313575665,3.2078,2490.1,2490.0,0.40162]
[1728313575857,3.60941,2490.1,2490.0,0.40162]
[1728313576059,0.40162,2490.0,2489.9,0.40163]
[1728313576456,3.2078,2490.1,2489.4,41.8043]
[1728313576662,3.60941,2490.1,2490.0,0.40162]
[1728313577059,3.2078,2490.4,2489.5,3.2078]
[1728313577268,3.2078,2490.4,2490.3,0.40157]
[1728313577465,6.134,2491.4,2490.3,1.00394]
[1728313577466,3.6902,2490.7,2490.3,1.00394]
[1728313577764,4.09171,2490.7,2490.6,0.40152]
[1728313578066,3.6902,2490.7,2490.6,0.40152]
[1728313578264,3.2078,2490.7,2490.6,0.40152]
[1728313578462,0.40147,2491.0,2490.1,3.2078]
[1728313578768,4.165,2491.3,2491.0,0.40145]
[1728313578966,4.165,2491.3,2490.1,3.2078]
[1728313579267,1.0039,2490.4,2489.8,3.2078]
[1728313579465,0.40161,2490.1,2490.0,0.40162]
[1728313579772,0.40164,2489.9,2489.8,3.60945]
[1728313580069,0.40174,2489.3,2488.7,1.00456]
[1728313580260,1.00415,2489.8,2488.6,40.8]
[1728313580261,3.2078,2489.5,2488.6,40.8]
[1728313580461,0.40173,2489.4,2488.8,0.40182]
[1728313580666,3.2078,2489.5,2488.6,40.8]
[1728313580863,3.60951,2489.5,2488.8,1.00452]
[1728313581067,3.2078,2489.5,2489.4,0.40172]
[1728313581973,5.34399,2490.2,2489.4,0.40172]
[1728313581974,3.2078,2490.1,2489.4,4.0168]
[1728313582168,3.2078,2490.1,2489.9,0.40163]
[1728313582169,3.60941,2490.1,2489.9,0.40163]
[1728313582473,3.2078,2490.1,2490.0,0.40162]
[1728313583169,3.6731,2490.4,2489.4,3.2078]
[1728313583366,3.2078,2490.0,2489.2,0.9515]
[1728313583564,0.40166,2489.8,2489.6,0.40167]
[1728313583766,4.21186,2490.0,2489.2,0.9515]
[1728313583966,0.40168,2489.7,2489.5,0.40169]
[1728313584266,0.40168,2489.7,2488.9,1.47149]
[1728313584267,3.2078,2490.0,2488.9,1.00449]
[1728313584469,0.40173,2489.4,2489.2,0.40175]
[1728313584673,3.2078,2489.7,2488.6,40.8]
[1728313584874,3.2078,2489.0,2488.2,3.2078]
[1728313585067,0.492,2489.6,2487.7,1.04050593]
[1728313585068,3.2078,2488.7,2487.7,1.04050593]
[1728313585271,3.2078,2488.7,2487.5,3.2078]
[1728313585272,3.2078,2488.4,2487.5,3.2078]
[1728313585470,0.40192,2488.2,2487.9,0.40195]
[1728313585869,3.2078,2488.4,2487.6,40.8]
[1728313586068,0.40191,2488.3,2488.0,0.40193]
[1728313586269,3.2078,2488.4,2487.6,40.8]
[1728313586476,0.40192,2488.2,2487.9,0.40195]
[1728313586772,0.40192,2488.2,2487.6,40.8]
[1728313586975,0.40192,2488.2,2487.9,0.40195]
[1728313587373,0.40192,2488.2,2487.6,40.8]
[1728313587374,0.40193,2488.1,2487.8,0.40196]
[1728313587570,0.40192,2488.2,2487.9,0.40195]
[1728313587771,0.40192,2488.2,2487.6,40.8]
[1728313588074,3.60968,2488.4,2487.6,40.8]
[1728313588278,3.2078,2488.4,2488.2,0.40191]
[1728313588480,3.60969,2488.4,2487.7,1.00499]
[1728313588674,3.2078,2488.4,2488.3,0.4019]
[1728313589981,3.2078,2488.4,2487.7,1.00498]
[1728313590189,0.40196,2487.9,2487.7,0.40198]
[1728313590382,3.2078,2488.1,2487.6,40.8]
[1728313590683,3.2078,2488.1,2487.5,1.4071]
[1728313590982,3.2078,2488.1,2487.5,40.8]
[1728313591181,3.2078,2488.1,2487.8,0.40198]
[1728313591182,0.40195,2488.0,2487.8,0.40198]
[1728313591581,0.40195,2488.0,2487.9,0.40196]
[1728313591884,0.40197,2487.9,2487.5,40.8]
[1728313592177,0.40197,2487.9,2487.7,0.40198]
[1728313592379,4.21279,2487.8,2486.9,1.00529]
[1728313592578,4.21279,2487.8,2487.6,0.402]
[1728313592579,0.402,2487.7,2487.6,0.402]
[1728313592777,3.2078,2487.8,2487.7,0.40199]
[1728313593178,3.2078,2488.1,2487.4,1.00509]
[1728313593574,3.2078,2488.1,2487.1,3.2078]
[1728313593575,3.2078,2488.1,2488.0,0.40194]
[1728313594179,0.40207,2487.3,2487.1,0.40208]
[1728313594379,1.00506,2487.6,2486.4,3.2078]
[1728313594380,0.40205,2487.4,2487.3,0.40205]
[1728313594584,0.40205,2487.4,2487.2,0.40206]
[1728313594777,0.40206,2487.3,2487.2,0.40206]
[1728313594980,0.40205,2487.4,2487.2,0.40206]
[1728313595178,0.40203,2487.5,2487.4,0.40204]
[1728313595486,0.40203,2487.5,2487.3,0.40205]
[1728313595677,3.2078,2487.6,2487.5,0.40203]
[1728313595985,3.2078,2487.6,2486.9,1.00528]
[1728313596183,3.60982,2487.6,2487.5,0.40203]
[1728313596694,3.2078,2487.6,2487.5,0.40203]
[1728313597582,0.40203,2487.5,2486.5,2.01092]
[1728313597781,0.40203,2487.5,2487.4,0.40204]
[1728313597981,3.2078,2487.6,2487.0,1.00524]
[1728313598182,3.60982,2487.6,2487.5,0.40203]
[1728313598787,0.40204,2487.4,2487.3,0.40205]
[1728313598988,3.2078,2487.6,2486.7,5.21856]
[1728313598989,0.40208,2487.2,2487.1,0.40208]
[1728313599484,0.4021,2487.1,2486.6,2.21892]
[1728313599785,3.2078,2487.3,2486.6,2.21892]
[1728313599987,0.40211,2487.0,2486.9,0.40211]
[1728313600183,4.21297,2487.3,2486.6,1.2135]
[1728313600485,4.21297,2487.3,2486.3,1.00554]
[1728313600486,0.40214,2486.8,2486.7,0.40214]
[1728313600685,3.2078,2486.9,2486.3,1.00554]
[1728313600887,3.2078,2486.9,2486.8,0.40214]
[1728313601076,3.2078,2487.3,2486.6,1.00543]
[1728313601382,3.2078,2487.3,2487.2,0.40207]
[1728313601588,0.40211,2487.0,2486.9,0.40211]
[1728313601787,0.40209,2487.1,2487.0,0.40209]
[1728313602286,4.21296,2487.3,2486.7,1.00538]
[1728313602484,3.2078,2487.3,2487.2,0.40207]
[1728313602989,0.402,2487.7,2487.6,0.402]
[1728313603286,7.5478,2487.8,2487.2,0.40206]
[1728313603584,7.5478,2487.8,2486.7,3.8199]
[1728313603585,3.2078,2487.5,2486.9,40.8]
[1728313603889,3.2078,2487.5,2487.3,0.40204]
[1728313604086,3.2078,2487.5,2486.9,40.8]
[1728313604390,3.2078,2487.8,2487.7,0.40199]
[1728313604988,3.86,2488.6,2487.7,5.02499]
[1728313605281,3.86,2488.6,2487.7,1.00499]
[1728313605282,3.2078,2488.5,2487.7,1.00499]
[1728313605486,3.2078,2488.5,2488.4,0.40188]
[1728313605676,3.2078,2488.5,2487.8,40.8]
[1728313605996,3.2078,2488.5,2488.4,0.40188]
[1728313605997,3.60966,2488.5,2488.4,0.40188]
[1728313606291,7.2262,2488.5,2487.8,40.8]
[1728313606495,3.2078,2488.5,2488.4,0.40188]
[1728313606784,0.6185,2488.8,2488.7,0.40183]
[1728313606979,0.6185,2488.8,2488.2,3.2078]
[1728313607182,0.6185,2488.8,2488.7,0.40183]
[1728313607984,3.60959,2489.0,2488.4,1.00469]
[1728313608295,3.2078,2489.0,2488.2,3.2078]
[1728313608588,3.2078,2489.0,2488.9,0.4018]
[1728313608979,3.2078,2489.0,2488.7,0.40182]
[1728313608980,3.60959,2489.0,2488.7,0.40182]
[1728313609187,3.2078,2489.0,2488.9,0.4018]
[1728313609584,3.8087,2489.5,2489.1,0.40176]
[1728313609784,0.40173,2489.4,2489.2,0.40174]
[1728313609985,0.40174,2489.3,2489.1,0.40176]
[1728313610182,0.40172,2489.4,2488.8,1.00454]
[1728313610387,3.8087,2489.5,2488.8,1.00454]
[1728313610891,0.6137,2489.8,2489.2,3.2078]
[1728313611095,1.01536,2489.8,2489.6,0.40168]
[1728313611296,1.01536,2489.8,2489.3,40.8]
[1728313611297,0.40167,2489.7,2489.5,0.40169]
[1728313611478,0.6137,2489.8,2489.5,0.40169]
[1728313611686,0.6137,2489.8,2489.6,0.40169]
[1728313611990,0.6137,2489.8,2489.3,40.8]
[1728313612191,0.6137,2489.8,2489.7,0.40167]
[1728313612487,3.60944,2489.9,2489.7,0.40167]
[1728313612488,3.2078,2489.9,2489.7,0.40167]
[1728313612693,0.40169,2489.6,2489.3,41.20172]
[1728313612891,3.2078,2489.6,2489.3,0.40172]
[1728313613085,3.2078,2489.6,2488.9,4.4716]
[1728313613086,4.0168,2489.5,2488.9,3.2078]
[1728313613282,1.2566,2489.5,2489.1,0.40176]
[1728313613584,1.2566,2489.5,2488.9,3.6096]
[1728313613585,0.40177,2489.1,2488.9,3.6096]
[1728313613983,1.0043,2489.4,2488.6,0.40183]
[1728313613984,0.40182,2488.8,2488.6,0.40183]
[1728313614178,0.40183,2488.7,2488.5,0.40185]
[1728313614389,0.40183,2488.7,2488.3,1.222]
[1728313614585,4.21229,2489.0,2488.3,1.222]
[1728313614781,3.2078,2488.7,2487.9,3.2078]
[1728313614990,0.40185,2488.6,2488.4,0.40188]
[1728313615192,3.2078,2488.7,2488.3,0.40189]
[1728313615587,3.2078,2488.7,2488.4,0.40187]
[1728313615793,3.60964,2488.7,2488.4,0.40187]
[1728313616190,3.2078,2488.7,2488.6,0.40185]
[1728313617294,3.2078,2488.7,2488.0,41.80487]
[1728313617598,3.2078,2488.7,2488.1,1.00483]
[1728313617599,3.60964,2488.7,2488.1,1.00483]
[1728313617787,3.60964,2488.7,2488.4,0.40187]
[1728313617995,3.60964,2488.7,2488.5,0.40186]
[1728313618594,3.2078,2488.7,2488.6,0.40185]
[1728313619896,3.60963,2488.7,2488.6,0.40185]
[1728313620199,7.2262,2488.7,2488.0,40.8]
[1728313620499,3.60964,2488.7,2488.5,0.40186]
[1728313620907,3.60964,2488.7,2488.0,41.80485]
[1728313620908,3.2078,2488.7,2488.0,41.80485]
[1728313621104,3.2078,2488.7,2488.6,0.40185]
[1728313622598,3.2078,2489.1,2488.6,4.0184]
[1728313622798,1.2028,2489.3,2488.5,3.2078]
[1728313622992,1.2028,2489.3,2489.2,0.40175]
[1728313623200,3.60951,2489.5,2489.3,0.40173]
[1728313623396,9.2078,2489.5,2488.2,3.2078]
[1728313623697,3.60961,2488.9,2488.0,1.00487]
[1728313623901,0.40182,2488.8,2488.0,1.00487]
[1728313624098,0.40182,2488.8,2487.9,1.2551]
[1728313624099,3.2078,2488.9,2487.9,1.2551]
[1728313624292,3.2078,2488.9,2488.3,0.40189]
[1728313624498,3.2078,2488.6,2488.0,4.65286961]
[1728313624704,0.40189,2488.4,2488.0,0.40194]
[1728313625009,0.40197,2487.9,2487.0,3.32775109]
[1728313625307,3.2078,2488.0,2487.0,3.8368]
[1728313625499,3.2078,2488.0,2487.4,0.40203]
[1728313625803,0.40198,2487.8,2487.4,0.40203]
[1728313625998,3.2078,2488.0,2487.0,3.8368]
[1728313626202,0.6343,2488.3,2487.4,1.00511]
[1728313626203,3.8421,2488.3,2487.4,1.00511]
[1728313626703,3.8421,2488.3,2487.5,5.44190184]
[1728313626998,3.8421,2488.3,2487.5,1.00507]
[1728313627196,3.8421,2488.3,2488.1,0.40192]
[1728313627400,3.8421,2488.3,2487.9,0.40195]
[1728313627699,3.8421,2488.3,2487.6,0.6241]
[1728313627899,3.8421,2488.3,2487.3,4.34]
[1728313628108,3.8421,2488.3,2487.7,4.26549528]
[1728313628109,3.2078,2488.3,2487.7,4.26549528]
[1728313628296,3.2078,2488.3,2488.1,0.40192]
[1728313628492,3.2078,2488.3,2487.7,1.59217]
[1728313628697,3.2078,2488.3,2488.2,0.40191]
[1728313628904,1.61396,2488.8,2487.9,4.21271]
[1728313628905,0.6094,2488.8,2487.9,4.21271]
[1728313629095,3.2078,2488.7,2487.8,4.26549528]
[1728313629295,3.2078,2488.7,2487.7,0.5872]
[1728313629296,0.40191,2488.2,2488.0,0.40194]
[1728313629502,3.2078,2488.4,2488.1,0.40192]
[1728313629701,3.2078,2488.4,2488.3,0.4019]
[1728313629901,3.2078,2488.8,2488.2,1.00479]
[1728313630095,3.2078,2488.8,2488.7,0.40183]
[1728313630607,3.60962,2488.8,2488.6,0.40184]
[1728313630802,3.60962,2488.8,2488.1,1.2758]
[1728313630803,3.2078,2488.8,2488.1,1.2758]
[1728313630998,0.40179,2489.0,2488.8,0.4018]
[1728313631199,3.2078,2489.2,2488.4,0.601]
[1728313631411,0.40184,2488.7,2488.6,0.40185]
[1728313631604,0.40183,2488.8,2488.4,0.601]
[1728313631903,3.2078,2489.2,2488.5,1.00467]
[1728313632111,3.60956,2489.2,2489.0,0.40178]
[1728313632409,3.60956,2489.2,2488.6,1.00461]
[1728313632410,3.2078,2489.2,2489.1,0.40177]
[1728313632702,1.1903,2489.5,2489.4,0.40172]
[1728313632909,3.2078,2489.9,2489.0,1.00445]
[1728313633104,0.40167,2489.7,2489.2,1.00438]
[1728313633303,0.40167,2489.7,2489.0,1.00445]
[1728313633304,1.00414,2489.8,2489.3,40.8]
[1728313633505,1.0042,2489.7,2489.1,0.621]
[1728313633800,4.21202,2489.6,2489.1,0.621]
[1728313633995,3.2078,2489.6,2489.1,41.421]
[1728313634398,3.2078,2489.6,2489.3,0.40173]
[1728313634399,0.40172,2489.4,2489.3,0.40173]
[1728313634604,0.40175,2489.3,2489.2,0.40175]
[1728313635005,3.2078,2489.6,2489.1,40.8]
[1728313635202,0.40171,2489.5,2489.4,0.40171]
[1728313635805,3.2078,2489.9,2489.1,41.80441]
[1728313636101,3.2078,2489.9,2489.6,0.40167]
[1728313636102,0.40168,2489.7,2489.6,0.40167]
[1728313636307,3.2078,2489.9,2489.2,1.00436]
[1728313636504,3.2078,2489.9,2489.3,1.00433]
[1728313636707,3.2078,2490.0,2489.9,0.40164]
[1728313637106,3.60942,2490.0,2489.9,0.40164]
[1728313637306,3.2078,2490.0,2489.9,0.40164]
[1728313637709,0.40158,2490.3,2490.2,0.40158]
[1728313637914,1.215,2490.6,2489.8,1.00413]
[1728313638109,4.4228,2490.6,2490.2,0.40158]
[1728313638311,4.4228,2490.6,2489.8,1.00413]
[1728313638505,0.40157,2490.4,2490.3,0.40157]
[1728313639009,0.40163,2490.0,2489.9,0.40163]
[1728313639210,0.40164,2489.9,2489.8,0.40164]
[1728313639405,0.40161,2490.1,2490.0,0.40162]
[1728313639612,3.2078,2490.2,2489.5,2.22924]
[1728313640018,0.40162,2490.1,2489.9,0.40163]
[1728313640315,0.40162,2490.1,2489.5,2.22924]
[1728313640316,3.2078,2490.2,2489.7,0.40166]
[1728313640617,0.40165,2489.9,2489.7,0.40166]
[1728313641117,3.6094,2490.2,2490.0,0.40161]
[1728313641313,4.016,2490.1,2490.0,0.40161]
[1728313641518,4.016,2490.1,2489.5,0.6031]
[1728313641812,1.00403,2490.1,2489.1,42.41809]
[1728313642015,0.40166,2489.8,2489.6,0.40167]
[1728313642314,3.2078,2489.9,2489.1,42.41809]
[1728313642514,3.2078,2489.9,2489.8,0.40165]
[1728313643611,3.2078,2490.4,2489.8,4.016]
[1728313643815,0.40158,2490.3,2490.1,0.40159]
[1728313644009,3.2078,2490.4,2489.8,0.5908]
[1728313644010,0.4016,2490.2,2489.8,0.5908]
[1728313644314,4.21171,2490.4,2490.0,0.40162]
[1728313644521,0.40161,2490.1,2490.0,0.40162]
[1728313644816,0.40159,2490.2,2490.1,0.4016]
[1728313645214,3.2078,2490.4,2489.8,1.00413]
[1728313645417,0.40158,2490.3,2490.1,0.40159]
[1728313645615,3.2078,2490.4,2489.5,3.2078]
[1728313645915,0.40158,2490.3,2490.1,0.40159]
[1728313646119,3.2078,2490.4,2489.8,1.00414]
[1728313646418,3.60937,2490.4,2490.0,0.40162]
[1728313646618,3.60937,2490.4,2490.3,0.40157]
[1728313646819,3.2078,2490.4,2489.8,1.00414]
[1728313647018,3.2078,2490.4,2489.7,3.2078]
[1728313647213,3.2078,2490.1,2489.3,9.00172]
[1728313647412,0.40168,2489.7,2489.6,0.40168]
[1728313647822,3.2078,2490.1,2489.3,4.81172]
[1728313648118,1.00411,2489.9,2489.3,3.8074]
[1728313648317,4.21184,2490.1,2489.7,0.40166]
[1728313648522,4.21184,2490.1,2489.4,1.0043]
[1728313648523,0.40165,2489.9,2489.8,0.40165]
[1728313648724,3.2078,2490.1,2489.4,1.0043]
[1728313648918,3.2078,2490.1,2490.0,0.40162]
[1728313649127,3.2078,2490.4,2490.3,0.40156]
[1728313649321,3.60936,2490.4,2490.3,0.40156]
[1728313649826,3.60936,2490.4,2490.2,0.40158]
[1728313649827,0.40158,2490.3,2490.2,0.40158]
[1728313650029,0.4016,2490.2,2490.1,0.4016]
[1728313650221,0.40161,2490.1,2490.0,0.40162]
[1728313650920,0.40159,2490.2,2490.1,0.40159]
[1728313651727,3.2078,2490.4,2490.3,0.40157]
[1728313651920,1.215,2490.6,2489.9,4.21188]
[1728313652121,1.215,2490.6,2490.5,0.40154]
[1728313652122,0.5884,2490.6,2490.5,0.40154]
[1728313652312,0.40151,2490.8,2490.7,0.40151]
[1728313652516,0.40151,2490.8,2490.3,1.00393]
[1728313652517,0.40149,2490.9,2490.2,3.2078]
[1728313652721,4.21146,2491.0,2490.3,1.00394]
[1728313652921,0.40149,2490.9,2490.8,0.40148]
[1728313653117,0.40152,2490.7,2490.6,0.40151]
[1728313653521,0.40149,2490.9,2490.8,0.40148]
[1728313654023,4.21146,2491.0,2490.9,0.40147]
[1728313654024,0.40147,2491.0,2490.9,0.40147]
[1728313654425,0.86316,2491.1,2491.0,0.40146]
[1728313654817,0.4617,2491.1,2491.0,0.40146]
[1728313655131,0.40139,2491.5,2491.0,4.41586]
[1728313655328,0.40139,2491.5,2491.4,0.4014]
[1728313655720,0.40139,2491.5,2491.0,0.40146]
[1728313655721,6.81639188,2491.6,2491.5,0.40138]
[1728313656432,3.60916,2491.6,2491.5,0.40138]
[1728313656631,0.4014,2491.4,2491.3,0.40139]
[1728313656819,0.4014,2491.4,2491.3,0.40141]
[1728313657022,3.2078,2491.6,2491.5,0.40138]
[1728313657922,0.40135,2491.7,2491.6,0.40135]
[1728313659136,3.2078,2491.9,2491.4,1.0035]
[1728313659437,3.60912,2491.9,2491.8,0.40133]
[1728313659629,0.40134,2491.8,2491.7,0.40134]
[1728313659834,3.60913,2491.9,2491.8,0.40133]
[1728313660232,1.00324,2492.1,2491.2,3.86]
[1728313660233,0.40129,2492.1,2492.0,0.40129]
[1728313660842,3.2078,2492.2,2492.1,0.40128]
[1728313661241,3.60907,2492.2,2491.7,1.00336]
[1728313661437,3.60907,2492.2,2492.1,0.40128]
[1728313661640,3.2078,2492.2,2492.1,0.40128]
[1728313661943,0.40137,2491.6,2491.0,1.4051]
[1728313662149,3.2078,2491.8,2490.8,1.48233]
[1728313662440,0.40138,2491.6,2490.9,1.0037]
[1728313662643,0.4014,2491.4,2491.2,0.40141]
[1728313662837,1.00338,2491.7,2491.1,0.40144]
[1728313662838,3.2078,2491.5,2491.1,0.40144]
[1728313663037,0.40142,2491.3,2491.1,0.40144]
[1728313663438,3.2078,2491.5,2490.8,1.48231]
[1728313663639,3.2078,2491.5,2490.8,0.4786]
[1728313663640,0.40142,2491.3,2490.8,0.4786]
[1728313663853,3.2078,2491.5,2490.8,0.4786]
[1728313664141,0.40141,2491.4,2491.2,0.40142]
[1728313664648,3.2078,2491.5,2490.8,0.4786]
[1728313664848,3.2078,2491.5,2490.9,1.00368]
[1728313665037,3.60918,2491.5,2491.3,0.4014]
[1728313665545,3.2078,2491.5,2491.4,0.4014]
[1728313666347,0.85446,2491.7,2491.0,1.00366]
[1728313666348,0.40138,2491.6,2491.0,1.00366]
[1728313666642,0.40138,2491.6,2491.5,0.40138]
[1728313666848,0.40137,2491.6,2491.5,0.40138]
[1728313667047,0.40142,2491.3,2491.2,0.40143]
[1728313667241,0.40143,2491.2,2491.1,0.40143]
[1728313667646,10.0144,2491.2,2490.7,3.2078]
[1728313667836,10.0144,2491.2,2489.8,0.9375]
[1728313667837,3.2078,2490.8,2489.8,0.9375]
[1728313668037,0.40158,2490.3,2490.2,0.40158]
[1728313668243,0.40159,2490.2,2490.0,0.40161]
[1728313668442,0.40159,2490.2,2489.8,41.7375]
[1728313668443,3.2078,2490.5,2489.8,41.7375]
[1728313668751,3.2078,2490.5,2490.1,0.4016]
[1728313668752,0.40158,2490.3,2490.1,0.4016]
[1728313669843,4.21168,2490.5,2489.8,41.7375]
[1728313670345,1.46018,2490.7,2489.4,4.86429]
[1728313670346,3.2078,2490.2,2489.4,4.86429]
[1728313670846,0.4016,2490.2,2490.0,0.40162]
[1728313671048,1.00392,2490.4,2489.6,1.00422]
[1728313671243,0.4016,2490.2,2490.0,0.40162]
[1728313671545,3.2078,2490.5,2489.6,1.00422]
[1728313671748,0.4016,2490.2,2489.6,1.00422]
[1728313671950,0.40158,2490.3,2489.7,1.00418]
[1728313672138,0.40159,2490.3,2489.7,1.00418]
[1728313672340,0.40159,2490.3,2490.1,0.4016]
[1728313672650,0.40159,2490.2,2490.1,0.4016]
[1728313672850,0.40164,2489.9,2489.8,0.40165]
[1728313673148,0.40164,2489.9,2489.7,0.40166]
[1728313673351,0.40164,2489.9,2489.5,40.8]
[1728313673352,3.2078,2490.2,2489.5,41.80423]
[1728313673546,3.2078,2490.2,2490.1,0.40161]
[1728313673948,3.60939,2490.2,2490.1,0.40161]
[1728313674255,3.2078,2490.2,2490.1,0.40161]
[1728313674448,3.60939,2490.2,2490.0,0.40161]
[1728313674649,3.2078,2490.2,2490.1,0.40161]
[1728313675146,3.2078,2490.5,2489.8,1.00413]
[1728313675346,0.40157,2490.4,2490.2,0.40158]
[1728313675547,4.21167,2490.5,2489.7,3.2078]
[1728313675747,0.4781,2490.6,2489.8,0.40164]
[1728313675748,0.40164,2489.9,2489.8,0.40164]
[1728313675950,0.40163,2490.0,2489.9,0.40163]
[1728313676250,3.2078,2490.2,2490.0,0.40162]
[1728313676448,3.2078,2490.2,2490.1,0.40161]
[1728313676449,3.6094,2490.2,2490.1,0.40161]
[1728313676747,3.6094,2490.2,2489.7,4.21198]
[1728313676748,3.2078,2490.2,2489.7,4.21198]
[1728313676958,3.2078,2490.2,2489.7,3.2078]
[1728313677155,0.40163,2490.0,2489.8,0.40165]
[1728313677356,0.40163,2490.0,2489.7,3.2078]
[1728313677555,0.40163,2490.0,2489.5,41.80424]
[1728313677556,3.2078,2490.2,2489.5,40.8]
[1728313677755,0.40163,2490.0,2489.9,0.40163]
[1728313678155,0.40163,2490.0,2489.8,0.40164]
[1728313679046,3.2078,2490.2,2489.5,41.80426]
[1728313679251,0.40163,2490.0,2489.8,0.40164]
[1728313679453,0.40164,2489.9,2489.8,0.40165]
[1728313680258,3.2078,2490.2,2489.5,40.8]
[1728313680555,3.2078,2490.2,2489.3,4.3113]
[1728313680765,0.4017,2489.6,2489.3,0.4513]
[1728313680953,0.4017,2489.6,2489.5,0.4017]
[1728313681458,0.40168,2489.7,2489.6,0.40168]
[1728313681859,3.2078,2489.9,2489.3,1.45563]
[1728313682068,0.40166,2489.8,2489.6,0.40167]
[1728313682359,0.4017,2489.5,2489.4,0.40172]
[1728313682663,0.40169,2489.6,2489.5,0.40169]
[1728313683050,1.00414,2489.8,2489.3,0.4513]
[1728313683246,0.40168,2489.7,2489.6,0.40168]
[1728313683451,0.40169,2489.6,2489.5,0.40169]
[1728313683671,0.40168,2489.7,2489.6,0.40168]
[1728313684047,4.64181,2489.9,2489.3,0.4513]
[1728313684357,3.2078,2489.9,2489.8,0.40165]
[1728313684552,3.2078,2489.9,2489.3,4.66344]
[1728313684755,3.2078,2489.9,2489.6,0.40168]
[1728313684756,0.40167,2489.7,2489.6,0.40168]
[1728313685057,0.40167,2489.8,2489.3,4.66344]
[1728313685254,0.40167,2489.8,2489.6,0.40167]
[1728313685447,3.2078,2489.9,2489.3,4.66344]
[1728313685646,0.40166,2489.8,2489.3,4.66344]
[1728313685855,3.2078,2489.9,2489.3,3.6591]
[1728313686055,0.40167,2489.8,2489.7,0.40167]
[1728313686257,3.2078,2489.9,2489.3,4.66343]
[1728313686447,0.40168,2489.7,2489.3,0.4513]
[1728313686654,0.40168,2489.7,2489.6,0.40169]
[1728313686949,4.21192,2489.9,2489.3,41.2513]
[1728313687152,3.2078,2489.9,2489.8,0.40165]
[1728313687367,3.2078,2490.2,2490.1,0.40161]
[1728313688060,1.00402,2490.1,2489.7,0.40166]
[1728313688261,13.2238,2490.2,2489.3,45.46344]
[1728313688262,3.2078,2490.2,2489.3,45.46344]
[1728313688461,3.2078,2489.9,2489.3,41.2513]
[1728313688664,0.40166,2489.8,2489.7,0.40166]
[1728313688861,3.2078,2489.9,2489.3,42.25564]
[1728313689163,3.2078,2489.9,2489.4,1.00429]
[1728313689367,3.2078,2489.9,2489.8,0.40165]
[1728313689368,3.60944,2489.9,2489.8,0.40165]
[1728313689861,3.2078,2489.9,2489.8,0.40165]
[1728313690262,3.60944,2489.9,2489.8,0.40165]